fUSD/lending_fUSD_20240116
["ID","MTS","AMOUNT","RATE_DAILY","PERIOD"]
[311749817,1705375853244,-500.0,0.00022437,2]
[311749818,1705375853253,-500.0,0.00022437,2]
[311749819,1705375853263,-500.0,0.00022437,2]
[311749820,1705375853272,-500.0,0.00022437,2]
[311749821,1705375853283,-500.0,0.00022437,2]
[311749822,1705375853294,-500.0,0.00022437,2]
[311749823,1705375853303,-500.0,0.00022437,2]
[311749824,1705375853313,-500.0,0.00022437,2]
[311749825,1705375853323,-924.4,0.00022437,2]
[311749826,1705375853333,-500.0,0.00022437,2]
[311749827,1705375853344,-687.74,0.00022437,2]
[311749828,1705375853354,-500.0,0.00022437,2]
[311749829,1705375853364,-500.0,0.00022437,2]
[311749830,1705375853374,-570.37018005,0.00022437,2]
[311749831,1705375853385,-500.0,0.00022437,2]
[311749832,1705375853394,-500.0,0.00022437,2]
[311749833,1705375853405,-500.0,0.00022437,2]
[311749834,1705375853416,-471.55369191,0.00022437,2]
[311749835,1705375853426,-645.38,0.00022437,2]
[311749836,1705375853437,-1062.4,0.00022437,2]
[311749837,1705375853449,-500.0,0.00022437,2]
[311749838,1705375853460,-573.82,0.00022437,2]
[311749839,1705375853470,-500.0,0.00022437,2]
[311749840,1705375853481,-500.0,0.00022437,2]
[311749841,1705375853491,-900.0,0.00022437,2]
[311749842,1705375853500,-500.0,0.00022437,2]
[311749843,1705375853512,-500.0,0.00022437,2]
[311749844,1705375853522,-500.0,0.00022437,2]
[311749845,1705375853534,-1224.79,0.00022437,2]
[311749846,1705375853544,-500.0,0.00022437,2]
[311749847,1705375853555,-2490.48,0.00022437,2]
[311749848,1705375853565,-500.0,0.00022437,2]
[311749849,1705375853575,-500.0,0.00022437,2]
[311749850,1705375853585,-500.0,0.00022437,2]
[311749851,1705375853596,-500.0,0.00022437,2]
[311749852,1705375853607,-500.0,0.00022437,2]
[311749853,1705375853617,-500.0,0.00022437,2]
[311749854,1705375853628,-500.0,0.00022437,2]
[311749855,1705375853639,-500.0,0.00022437,2]
[311749856,1705375853649,-500.0,0.00022437,2]
[311749857,1705375853660,-500.0,0.00022437,2]
[311749858,1705375853670,-500.0,0.00022437,2]
[311749859,1705375853679,-500.0,0.00022437,2]
[311749860,1705375853688,-538.64,0.00022437,2]
[311749861,1705375853700,-608.55,0.00022437,2]
[311749862,1705375853710,-500.0,0.00022437,2]
[311749863,1705375853720,-500.0,0.00022437,2]
[311749864,1705375853730,-645.8,0.00022437,2]
[311749865,1705375853739,-500.0,0.00022437,2]
[311749866,1705375853749,-500.0,0.00022437,2]
[311749867,1705375853761,-500.0,0.00022437,2]
[311749868,1705375853771,-1246.62,0.00022437,2]
[311749869,1705375853781,-521.48,0.00022437,2]
[311749870,1705375853791,-500.0,0.00022437,2]
[311749871,1705375853800,-681.29,0.00022437,2]
[311749872,1705375853810,-584.82,0.00022437,2]
[311749873,1705375853824,-500.0,0.00022437,2]
[311749874,1705375853833,-585.68,0.00022437,2]
[311749875,1705375853843,-2494.88,0.00022437,2]
[311749876,1705375853854,-500.0,0.00022437,2]
[311749877,1705375853864,-500.0,0.00022437,2]
[311749878,1705375853873,-859.49,0.00022437,2]
[311749879,1705375853883,-500.0,0.00022437,2]
[311749880,1705375853895,-500.0,0.00022437,2]
[311749881,1705375853905,-500.0,0.00022437,2]
[311749882,1705375853915,-500.0,0.00022437,2]
[311749883,1705375853925,-785.95,0.00022437,2]
[311749884,1705375853934,-5536.87,0.00022437,2]
[311749885,1705375853944,-500.0,0.00022437,2]
[311749886,1705375853954,-565.54,0.00022437,2]
[311749887,1705375853963,-500.0,0.00022437,2]
[311749888,1705375853973,-583.16,0.00022437,2]
[311749889,1705375853982,-500.0,0.00022437,2]
[311749890,1705375853992,-510.18,0.00022437,2]
[311749891,1705375854001,-500.0,0.00022437,2]
[311749892,1705375854010,-504.08,0.00022437,2]
[311749893,1705375854020,-578.16,0.00022437,2]
[311749894,1705375854029,-615.58868029,0.00022437,2]
[311749895,1705375854038,-500.0,0.00022437,2]
[311749896,1705375854047,-500.0,0.00022437,2]
[311749897,1705375854057,-500.0,0.00022437,2]
[311749898,1705375854066,-500.0,0.00022437,2]
[311749899,1705375854075,-903.8,0.00022437,2]
[311749900,1705375854085,-500.0,0.00022437,2]
[311749901,1705375854094,-521.25,0.00022437,2]
[311749902,1705375854103,-1028.05,0.00022437,2]
[311749903,1705375854113,-980.29,0.00022437,2]
[311749904,1705375854123,-973.86,0.00022437,2]
[311749905,1705375854132,-500.0,0.00022437,2]
[311749906,1705375854141,-500.0,0.00022437,2]
[311749907,1705375854150,-500.0,0.00022437,2]
[311749908,1705375854160,-796.89,0.00022437,2]
[311749909,1705375854169,-830.14,0.00022437,2]
[311749910,1705375854178,-1169.29,0.00022437,2]
[311749911,1705375854187,-2527.06,0.00022437,2]
[311749912,1705375854197,-500.0,0.00022437,2]
[311749913,1705375854207,-784.45,0.00022437,2]
[311749914,1705375854216,-500.0,0.00022437,2]
[311749915,1705375854226,-2991.18,0.00022437,2]
[311749916,1705375854235,-500.0,0.00022437,2]
[311749917,1705375854244,-645.79,0.00022437,2]
[311749918,1705375854254,-500.0,0.00022437,2]
[311749919,1705375854263,-500.0,0.00022437,2]
[311749920,1705375854273,-500.0,0.00022437,2]
[311749921,1705375854283,-500.0,0.00022437,2]
[311749922,1705375854292,-540.6,0.00022437,2]
[311749923,1705375854301,-734.91,0.00022437,2]
[311749924,1705375854310,-500.0,0.00022437,2]
[311749925,1705375854320,-500.0,0.00022437,2]
[311749926,1705375854330,-500.0,0.00022437,2]
[311749927,1705375854339,-500.0,0.00022437,2]
[311749928,1705375854349,-500.0,0.00022437,2]
[311749929,1705375854358,-500.0,0.00022437,2]
[311749930,1705375854367,-500.0,0.00022437,2]
[311749931,1705375854377,-668.97,0.00022437,2]
[311749932,1705375854386,-500.0,0.00022437,2]
[311749933,1705375854395,-500.0,0.00022437,2]
[311749934,1705375854405,-500.0,0.00022437,2]
[311749935,1705375854415,-500.0,0.00022437,2]
[311749936,1705375854424,-680.93,0.00022437,2]
[311749937,1705375854434,-500.0,0.00022437,2]
[311749938,1705375854444,-505.48,0.00022437,2]
[311749939,1705375854452,-500.0,0.00022437,2]
[311749940,1705375854462,-500.0,0.00022437,2]
[311749941,1705375854471,-552.52,0.00022437,2]
[311749942,1705375854480,-500.0,0.00022437,2]
[311749943,1705375854489,-574.73,0.00022437,2]
[311749944,1705375854499,-500.0,0.00022437,2]
[311749945,1705375854509,-681.34,0.00022437,2]
[311749946,1705375854518,-500.0,0.00022437,2]
[311749947,1705375854527,-866.78,0.00022437,2]
[311749948,1705375854536,-922.35,0.00022437,2]
[311749949,1705375854545,-2002.96,0.00022437,2]
[311749950,1705375854555,-500.0,0.00022437,2]
[311749951,1705375854564,-517.23,0.00022437,2]
[311749952,1705375854574,-500.0,0.00022437,2]
[311749953,1705375854583,-1219.23,0.00022437,2]
[311749954,1705375854593,-1255.54,0.00022437,2]
[311749955,1705375854602,-500.0,0.00022437,2]
[311749956,1705375854611,-633.15,0.00022437,2]
[311749957,1705375854620,-850.32,0.00022437,2]
[311749958,1705375854725,-500.0,0.00022437,2]
[311749959,1705375854735,-500.0,0.00022437,2]
[311749960,1705375854744,-500.0,0.00022438,2]
[311749961,1705375854753,-500.0,0.00022438,2]
[311749962,1705375854762,-500.0,0.00022438,2]
[311749963,1705375854771,-500.0,0.00022438,2]
[311749964,1705375854780,-512.9,0.00022438,2]
[311749965,1705375854789,-500.0,0.00022438,2]
[311749966,1705375854799,-500.0,0.00022438,2]
[311749967,1705375854808,-500.0,0.00022438,2]
[311749968,1705375854817,-500.0,0.00022438,2]
[311749969,1705375854826,-636.1,0.00022438,2]
[311749970,1705375854835,-1037.79,0.00022438,2]
[311749971,1705375854844,-500.0,0.00022438,2]
[311749972,1705375854853,-500.0,0.00022438,2]
[311749973,1705375854862,-537.11,0.00022438,2]
[311749974,1705375854872,-500.0,0.00022438,2]
[311749975,1705375854881,-500.0,0.00022438,2]
[311749976,1705375854890,-798.89,0.00022438,2]
[311749977,1705375854899,-500.0,0.00022438,2]
[311749978,1705375854909,-1111.4,0.00022438,2]
[311749979,1705375854918,-522.29,0.00022438,2]
[311749980,1705375854927,-492.48869256,0.00022438,2]
[311749981,1705375854937,-500.0,0.00022438,2]
[311749982,1705375854948,-500.0,0.00022438,2]
[311749983,1705375854957,-1109.78,0.00022438,2]
[311749984,1705375854966,-666.24,0.00022438,2]
[311749985,1705375854976,-500.0,0.00022438,2]
[311749986,1705375854986,-587.02,0.00022438,2]
[311749987,1705375854995,-500.0,0.00022438,2]
[311749988,1705375855005,-500.0,0.00022438,2]
[311749989,1705375855014,-500.0,0.00022438,2]
[311749990,1705375855023,-500.0,0.00022438,2]
[311749991,1705375855033,-588.4,0.00022438,2]
[311749992,1705375855042,-500.0,0.00022438,2]
[311749993,1705375855051,-500.0,0.00022438,2]
[311749994,1705375855061,-523.75,0.00022438,2]
[311749995,1705375855070,-500.0,0.00022438,2]
[311749996,1705375855079,-500.0,0.00022438,2]
[311749997,1705375855088,-500.0,0.00022438,2]
[311749998,1705375855098,-500.0,0.00022438,2]
[311749999,1705375855107,-500.0,0.00022438,2]
[311750000,1705375855116,-500.0,0.00022438,2]
[311750001,1705375855125,-500.0,0.00022438,2]
[311750002,1705375855135,-500.0,0.00022438,2]
[311750003,1705375855144,-500.0,0.00022438,2]
[311750004,1705375855153,-871.12,0.00022438,2]
[311750005,1705375855162,-500.0,0.00022438,2]
[311750006,1705375855172,-500.0,0.00022438,2]
[311750007,1705375855181,-611.55,0.00022438,2]
[311750008,1705375855191,-596.04,0.00022438,2]
[311750009,1705375855201,-500.0,0.00022474,2]
[311750010,1705375855214,-200.0,0.00022474,2]
[311750011,1705375855223,-155.9,0.00022488,2]
[311750012,1705375855233,-12294.16339703,0.000225,2]
[311750013,1705375855242,-1000.0,0.000225,2]
[311750014,1705375855251,-3305.0,0.000226,2]
[311750015,1705375855260,-172.71378818,0.00022606,2]
[311750016,1705375855270,-2116.6233071,0.00022606,2]
[311750017,1705375855279,-2022.8399,0.00022609,2]
[311750018,1705375855288,-1340.0114,0.00022609,2]
[311750019,1705375855297,-250.0,0.0002261,2]
[311750020,1705375855307,-235.10622754,0.00022618,2]
[311750021,1705375855316,-800.0,0.0002263,2]
[311750022,1705375855326,-2116.623307,0.00022656,2]
[311750023,1705375855336,-155.13781589,0.00022706,2]
[311750024,1705375855345,-500.0,0.00022706,2]
[311750025,1705375855355,-978.58,0.00022706,2]
[311750026,1705375855364,-500.0,0.00022706,2]
[311750027,1705375855375,-500.0,0.00022706,2]
[311750028,1705375855385,-500.0,0.00022706,2]
[311750029,1705375855395,-640.34,0.00022706,2]
[311750030,1705375855404,-500.0,0.00022706,2]
[311750031,1705375855414,-500.0,0.00022706,2]
[311750032,1705375855424,-1235.56,0.00022706,2]
[311750033,1705375855435,-500.0,0.00022706,2]
[311750034,1705375855448,-662.75,0.00022706,2]
[311750035,1705375855457,-717.72,0.00022706,2]
[311750036,1705375855467,-731.11,0.00022706,2]
[311750037,1705375855476,-500.0,0.00022706,2]
[311750038,1705375855485,-797.15,0.00022706,2]
[311750039,1705375855495,-566.67,0.00022706,2]
[311750040,1705375855504,-609.99,0.00022706,2]
[311750041,1705375855514,-527.61,0.00022706,2]
[311750042,1705375855523,-536.35,0.00022706,2]
[311750043,1705375855533,-618.82,0.00022706,2]
[311750044,1705375855542,-878.41,0.00022706,2]
[311750045,1705375855551,-3429.56,0.00022706,2]
[311750046,1705375855561,-1594.34,0.00022706,2]
[311750047,1705375855570,-653.22,0.00022706,2]
[311750048,1705375855580,-1058.93,0.00022706,2]
[311750049,1705375855590,-2032.16,0.00022706,2]
[311750050,1705375855600,-500.0,0.00022706,2]
[311750051,1705375855614,-1171.42,0.00022706,2]
[311750052,1705375855624,-2917.86,0.00022706,2]
[311750053,1705375855634,-552.54,0.00022706,2]
[311750054,1705375855643,-690.96,0.00022706,2]
[311750055,1705375855652,-882.7,0.00022706,2]
[311750056,1705375855662,-1377.81,0.00022706,2]
[311750057,1705375855672,-500.0,0.00022706,2]
[311750058,1705375855682,-958.84,0.00022706,2]
[311750059,1705375855691,-500.0,0.00022706,2]
[311750060,1705375855703,-798.36,0.00022706,2]
[311750061,1705375855713,-558.21,0.00022706,2]
[311750062,1705375855722,-500.0,0.00022706,2]
[311750063,1705375855731,-2008.2,0.00022706,2]
[311750064,1705375855741,-4429.64,0.00022706,2]
[311750065,1705375855751,-500.0,0.00022706,2]
[311750066,1705375855760,-6189.38,0.00022706,2]
[311750067,1705375855769,-1077.33,0.00022706,2]
[311750068,1705375855778,-517.17,0.00022706,2]
[311750069,1705375855787,-2218.07,0.00022706,2]
[311750070,1705375855797,-500.0,0.00022706,2]
[311750071,1705375855806,-500.0,0.00022706,2]
[311750072,1705375855818,-698.05,0.00022706,2]
[311750073,1705375855829,-1357.56,0.00022706,2]
[311750074,1705375855840,-1914.32,0.00022706,2]
[311750075,1705375855849,-2792.98,0.00022706,2]
[311750076,1705375855859,-500.0,0.00022706,2]
[311750077,1705375855868,-2595.32,0.00022706,2]
[311750078,1705375855878,-4517.94,0.00022706,2]
[311750079,1705375855887,-658.46,0.00022706,2]
[311750080,1705375855899,-765.45,0.00022706,2]
[311750081,1705375855910,-1793.53,0.00022706,2]
[311750082,1705375855919,-2412.6,0.00022706,2]
[311750083,1705375855929,-1565.35,0.00022706,2]
[311750084,1705375855938,-1183.26,0.00022706,2]
[311750085,1705375855950,-500.0,0.00022706,2]
[311750086,1705375855958,-948.46,0.00022706,2]
[311750087,1705375855968,-762.39,0.00022706,2]
[311750088,1705375855977,-500.0,0.00022706,2]
[311750089,1705375855985,-3029.84,0.00022706,2]
[311750090,1705375855994,-843.82,0.00022706,2]
[311750091,1705375856003,-721.39,0.00022706,2]
[311750092,1705375856012,-555.69,0.00022706,2]
[311750093,1705375856021,-2005.8,0.00022706,2]
[311750094,1705375856029,-1111.09,0.00022706,2]
[311750095,1705375856038,-2546.91,0.00022706,2]
[311750096,1705375856047,-788.29,0.00022706,2]
[311750097,1705375856056,-702.57,0.00022706,2]
[311750098,1705375856065,-1534.98,0.00022706,2]
[311750099,1705375856074,-500.0,0.00022706,5]
[311750100,1705375856082,-2648.43,0.00022706,2]
[311750101,1705375856091,-2246.78,0.00022706,2]
[311750102,1705375856100,-2411.71,0.00022706,2]
[311750103,1705375856110,-13224.02,0.00022706,2]
[311750104,1705375856119,-856.33,0.00022706,2]
[311750105,1705375856128,-2116.623307,0.00022707,2]
[311750106,1705375856138,-2302.37,0.00022707,2]
[311750107,1705375856147,-500.0,0.00022707,2]
[311750108,1705375856156,-500.0,0.00022707,2]
[311750109,1705375856166,-500.0,0.00022707,2]
[311750110,1705375856175,-500.0,0.00022707,2]
[311750111,1705375856184,-1192.19,0.00022707,2]
[311750112,1705375856193,-830.71,0.00022707,2]
[311750113,1705375856204,-792.38,0.00022707,2]
[311750114,1705375856213,-500.0,0.00022707,2]
[311750115,1705375856224,-850.13,0.00022707,2]
[311750116,1705375856234,-9565.76,0.00022707,2]
[311750117,1705375856244,-2111.49,0.00022707,2]
[311750118,1705375856254,-918.23,0.00022707,2]
[311750119,1705375856263,-937.69,0.00022707,2]
[311750120,1705375856274,-854.87,0.00022707,2]
[311750121,1705375856283,-929.43,0.00022707,2]
[311750122,1705375856292,-969.71,0.00022707,2]
[311750123,1705375856302,-926.0,0.00022707,2]
[311750124,1705375856311,-1158.27,0.00022707,2]
[311750125,1705375856321,-622.5,0.00022707,2]
[311750126,1705375856330,-500.0,0.00022707,2]
[311750127,1705375856339,-688.3,0.00022707,2]
[311750128,1705375856348,-1611.99,0.00022707,2]
[311750129,1705375856357,-500.0,0.00022707,2]
[311750130,1705375856366,-500.0,0.00022707,2]
[311750131,1705375856375,-500.0,0.00022707,2]
[311750132,1705375856386,-676.21,0.00022707,2]
[311750133,1705375856396,-500.0,0.00022707,2]
[311750134,1705375856405,-500.0,0.00022707,2]
[311750135,1705375856414,-1257.76,0.00022707,2]
[311750136,1705375856424,-500.0,0.00022707,2]
[311750137,1705375856433,-550.56,0.00022707,2]
[311750138,1705375856442,-2473.4,0.00022707,2]
[311750139,1705375856453,-500.0,0.00022707,2]
[311750140,1705375856463,-1619.94,0.00022707,2]
[311750141,1705375856473,-592.73,0.00022708,2]
[311750142,1705375856482,-500.0,0.00022708,2]
[311750143,1705375856491,-500.0,0.00022708,2]
[311750144,1705375856500,-500.0,0.00022708,2]
[311750145,1705375856510,-500.0,0.00022708,2]
[311750146,1705375856519,-308.89200509,0.00022708,2]
[311750147,1705375856529,-678.11,0.00022708,2]
[311750148,1705375856540,-512.07,0.00022708,2]
[311750149,1705375856549,-537.36,0.00022708,2]
[311750150,1705375856558,-500.0,0.00022708,2]
[311750151,1705375856567,-500.0,0.00022708,2]
[311750152,1705375856576,-559.33,0.00022708,2]
[311750153,1705375856586,-500.0,0.00022708,2]
[311750154,1705375856595,-500.0,0.00022708,2]
[311750155,1705375856604,-500.0,0.00022708,2]
[311750156,1705375856613,-880.96,0.00022708,2]
[311750157,1705375856623,-500.0,0.00022708,2]
[311750158,1705375856633,-500.0,0.00022708,2]
[311750159,1705375856643,-1747.64,0.00022708,2]
[311750160,1705375856652,-510.69,0.00022708,2]
[311750161,1705375856661,-681.42,0.00022708,2]
[311750162,1705375856670,-810.39,0.00022708,2]
[311750163,1705375856679,-500.0,0.00022708,2]
[311750164,1705375856688,-500.0,0.00022708,2]
[311750165,1705375856697,-1343.44,0.00022708,2]
[311750166,1705375856707,-600.45578543,0.00022708,2]
[311750167,1705375856716,-606.4,0.00022708,2]
[311750168,1705375856727,-605.97,0.00022708,2]
[311750169,1705375856737,-955.01,0.00022708,2]
[311750170,1705375856746,-500.0,0.00022708,2]
[311750171,1705375856755,-743.22,0.00022708,2]
[311750172,1705375856764,-570.92,0.00022708,2]
[311750173,1705375856774,-605.58,0.00022708,2]
[311750174,1705375856783,-594.1,0.00022708,2]
[311750175,1705375856793,-735.73,0.00022708,2]
[311750176,1705375856802,-500.0,0.00022708,2]
[311750177,1705375856811,-537.23,0.00022708,2]
[311750178,1705375856821,-600.83,0.00022708,2]
[311750179,1705375856830,-966.65,0.00022708,2]
[311750180,1705375856840,-500.0,0.00022708,5]
[311750181,1705375856850,-652.46,0.00022708,2]
[311750182,1705375856859,-656.27,0.00022708,2]
[311750183,1705375856868,-500.0,0.00022708,2]
[311750184,1705375856877,-6345.72,0.00022708,2]
[311750185,1705375856886,-502.31,0.00022708,2]
[311750186,1705375856896,-865.62,0.00022708,2]
[311750187,1705375856905,-9820.61,0.00022708,2]
[311750188,1705375856914,-533.54,0.00022708,2]
[311750189,1705375856924,-500.0,0.00022708,2]
[311750190,1705375856934,-2240.39,0.00022708,2]
[311750191,1705375856945,-1478.02,0.00022708,2]
[311750192,1705375856955,-647.86,0.00022708,2]
[311750193,1705375856964,-1278.22,0.00022708,2]
[311750194,1705375856974,-3961.12,0.00022708,2]
[311750195,1705375856984,-604.87,0.00022708,2]
[311750196,1705375856994,-5554.33,0.00022708,2]
[311750197,1705375857003,-1425.71,0.00022708,2]
[311750198,1705375857012,-791.83,0.00022708,2]
[311750199,1705375857021,-1218.15,0.00022708,2]
[311750200,1705375857031,-1227.22,0.00022708,2]
[311750201,1705375857040,-566.8,0.00022708,2]
[311750202,1705375857050,-512.27,0.00022708,2]
[311750203,1705375857059,-500.0,0.00022708,2]
[311750204,1705375857069,-1259.55,0.00022708,2]
[311750205,1705375857078,-500.0,0.00022708,2]
[311750206,1705375857087,-17246.35,0.00022708,2]
[311750207,1705375857097,-569.18,0.00022708,2]
[311750208,1705375857106,-1383.82,0.00022708,2]
[311750209,1705375857115,-538.63266576,0.00022708,2]
[311750210,1705375857125,-950.02,0.00022708,2]
[311750211,1705375857135,-624.08,0.00022708,2]
[311750212,1705375857144,-922.5,0.00022708,2]
[311750213,1705375857153,-500.0,0.00022709,2]
[311750214,1705375857163,-500.0,0.00022709,2]
[311750215,1705375857172,-744.78,0.00022709,2]
[311750216,1705375857182,-500.0,0.00022709,2]
[311750217,1705375857193,-526.04,0.00022709,2]
[311750218,1705375857203,-500.0,0.00022709,2]
[311750219,1705375857212,-662.16,0.00022709,2]
[311750220,1705375857221,-500.0,0.00022709,2]
[311750221,1705375857231,-523.96,0.00022709,2]
[311750222,1705375857241,-500.0,0.00022709,2]
[311750223,1705375857251,-825.68,0.00022709,2]
[311750224,1705375857261,-678.04,0.00022709,2]
[311750225,1705375857271,-573.24,0.00022709,2]
[311750226,1705375857280,-595.23,0.00022709,2]
[311750227,1705375857289,-702.6,0.00022709,2]
[311750228,1705375857298,-551.59,0.00022709,2]
[311750229,1705375857308,-554.31,0.00022709,2]
[311750230,1705375857318,-500.0,0.00022709,2]
[311750231,1705375857328,-500.0,0.00022709,2]
[311750232,1705375857337,-500.0,0.00022709,2]
[311750233,1705375857346,-500.0,0.00022709,2]
[311750234,1705375857356,-500.0,0.00022709,2]
[311750235,1705375857365,-836.16,0.00022709,2]
[311750236,1705375857374,-654.83,0.00022709,2]
[311750237,1705375857383,-516.82,0.00022709,2]
[311750238,1705375857393,-500.0,0.00022709,2]
[311750239,1705375857402,-500.0,0.00022709,2]
[311750240,1705375857411,-500.0,0.00022709,2]
[311750241,1705375857422,-722.39,0.00022709,2]
[311750242,1705375857431,-500.0,0.00022709,2]
[311750243,1705375857442,-573.75,0.00022709,2]
[311750244,1705375857452,-500.0,0.00022709,2]
[311750245,1705375857461,-500.0,0.00022709,2]
[311750246,1705375857470,-525.12,0.00022709,2]
[311750247,1705375857479,-500.0,0.00022709,2]
[311750248,1705375857489,-218.04,0.00022709,2]
[311750249,1705375857498,-582.73,0.00022709,2]
[311750250,1705375857507,-614.97,0.00022709,2]
[311750251,1705375857516,-500.0,0.00022709,2]
[311750252,1705375857526,-500.0,0.00022709,2]
[311750253,1705375857535,-500.0,0.00022709,2]
[311750254,1705375857544,-500.0,0.00022709,2]
[311750255,1705375857554,-500.0,0.00022709,2]
[311750256,1705375857563,-500.0,0.00022709,2]
[311750257,1705375857572,-523.33,0.00022709,2]
[311750258,1705375857581,-527.73,0.00022709,2]
[311750259,1705375857591,-500.0,0.00022709,2]
[311750260,1705375857600,-554.1,0.00022709,2]
[311750261,1705375857610,-512.79,0.00022709,2]
[311750262,1705375857619,-965.14,0.00022709,2]
[311750263,1705375857628,-500.0,0.00022709,2]
[311750264,1705375857639,-625.18,0.00022709,2]
[311750265,1705375857648,-593.38,0.00022709,2]
[311750266,1705375857658,-544.64,0.00022709,2]
[311750267,1705375857667,-500.0,0.00022709,2]
[311750268,1705375857676,-500.0,0.00022709,2]
[311750269,1705375857685,-543.0,0.00022709,2]
[311750270,1705375857695,-500.0,0.00022709,2]
[311750271,1705375857705,-500.0,0.00022709,2]
[311750272,1705375857714,-858.02,0.00022709,2]
[311750273,1705375857724,-500.0,0.00022709,2]
[311750274,1705375857734,-500.0,0.00022709,2]
[311750275,1705375857743,-612.78,0.00022709,2]
[311750276,1705375857753,-518.79,0.00022709,2]
[311750277,1705375857762,-500.0,0.00022709,2]
[311750278,1705375857771,-555.04,0.00022709,2]
[311750279,1705375857781,-696.15,0.00022709,2]
[311750280,1705375857790,-874.25,0.00022709,2]
[311750281,1705375857800,-500.0,0.00022709,2]
[311750282,1705375857810,-537.65,0.00022709,2]
[311750283,1705375857823,-1114.76,0.00022709,2]
[311750284,1705375857833,-503.26,0.00022709,2]
[311750285,1705375857842,-500.0,0.00022709,2]
[311750286,1705375857853,-801.7,0.00022709,2]
[311750287,1705375857863,-500.0,0.00022709,2]
[311750288,1705375857873,-500.0,0.00022709,2]
[311750289,1705375857882,-608.06,0.00022709,2]
[311750290,1705375857892,-956.26,0.00022709,2]
[311750291,1705375857903,-501.52,0.00022709,2]
[311750292,1705375857912,-2599.42,0.00022709,2]
[311750293,1705375857922,-1494.67,0.00022709,2]
[311750294,1705375857931,-500.0,0.00022709,2]
[311750295,1705375857941,-500.0,0.00022709,2]
[311750296,1705375857951,-2922.48,0.00022709,2]
[311750297,1705375857961,-1060.51,0.00022709,2]
[311750298,1705375857971,-500.0,0.00022709,2]
[311750299,1705375857981,-500.0,0.00022709,2]
[311750300,1705375857990,-3580.6,0.00022709,2]
[311750301,1705375858000,-1263.78,0.00022709,2]
[311750302,1705375858010,-1999.51,0.00022709,2]
[311750303,1705375858019,-500.0,0.00022709,2]
[311750304,1705375858028,-500.0,0.00022709,2]
[311750305,1705375858038,-500.0,0.00022709,2]
[311750306,1705375858047,-640.18,0.00022709,2]
[311750307,1705375858057,-1636.6,0.00022709,2]
[311750308,1705375858067,-568.92,0.00022709,2]
[311750309,1705375858077,-701.3,0.00022709,2]
[311750310,1705375858086,-559.46,0.00022709,2]
[311750311,1705375858095,-5881.5,0.00022709,2]
[311750312,1705375858105,-500.0,0.00022709,2]
[311750313,1705375858114,-1019.85,0.00022709,2]
[311750314,1705375858123,-500.0,0.00022709,2]
[311750315,1705375858133,-864.24,0.00022709,2]
[311750316,1705375858143,-1141.15,0.00022709,2]